bitfinex/quotes_ETHUSD_20250323
["timestamp","ask_amount","ask_price","bid_price","bid_amount"]
[1742754261995,12.98639916,1995.9,1995.6,4.696]
[1742754262303,6.92256753,1995.8,1995.6,4.696]
[1742754262459,7.38296753,1995.8,1995.6,4.696]
[1742754263597,12.39367753,1995.8,1995.5,27.044]
[1742754263799,6.79593742,1995.7,1995.5,27.044]
[1742754264162,0.12614044,1995.6,1995.5,27.044]
[1742754264507,7.25600742,1995.8,1995.5,27.044]
[1742754264701,0.12614044,1995.6,1995.5,27.044]
[1742754264861,7.25600742,1995.8,1995.5,27.044]
[1742754265062,0.12614044,1995.6,1995.5,27.044]
[1742754265262,7.25600742,1995.8,1995.5,27.044]
[1742754265462,0.12614044,1995.6,1995.5,27.044]
[1742754265665,7.25600742,1995.8,1995.5,27.044]
[1742754265889,0.12614044,1995.6,1995.5,27.044]
[1742754266204,7.25600742,1995.8,1995.5,27.044]
[1742754266402,0.12614044,1995.6,1995.5,27.044]
[1742754266696,12.26671742,1995.8,1995.5,27.044]
[1742754266865,0.12614044,1995.6,1995.5,27.044]
[1742754267065,5.01078,1995.7,1995.5,27.044]
[1742754267300,0.12614044,1995.6,1995.5,27.044]
[1742754267698,5.01078,1995.7,1995.5,27.044]
[1742754267889,0.12614044,1995.6,1995.5,27.044]
[1742754268290,5.01078,1995.7,1995.5,27.044]
[1742754268605,0.12614044,1995.6,1995.5,27.044]
[1742754268968,5.01078,1995.7,1995.5,27.044]
[1742754269168,0.12614044,1995.6,1995.5,27.044]
[1742754269508,5.01078,1995.7,1995.5,27.044]
[1742754269806,0.12614044,1995.6,1995.5,27.044]
[1742754270410,5.01078,1995.7,1995.5,27.044]
[1742754270616,0.12614044,1995.6,1995.5,27.044]
[1742754271123,6.79584742,1995.7,1995.5,27.044]
[1742754271282,0.12614044,1995.6,1995.5,27.044]
[1742754271477,7.25600742,1995.8,1995.5,27.044]
[1742754271720,0.12614044,1995.6,1995.5,32.05524]
[1742754271879,1.78506742,1995.8,1995.5,35.837942]
[1742754272078,0.12614044,1995.6,1995.5,32.05524]
[1742754272324,1.78506742,1995.8,1995.5,32.05524]
[1742754272611,0.12651634,1995.7,1995.5,27.044]
[1742754273200,5.13728634,1995.7,1995.5,27.044]
[1742754273911,1.78506742,1995.6,1995.5,26.494]
[1742754274087,6.79608742,1995.6,1995.5,26.494]
[1742754274291,8.16161024,1995.6,1995.5,26.494]
[1742754277586,8.16161024,1995.6,1995.1,9.7072]
[1742754277587,5.01194,1995.3,1995.0,5.5008]
[1742754277922,0.12314218,1995.2,1995.0,4.696]
[1742754278626,1.9082096,1995.2,1995.0,4.696]
[1742754278795,0.12314218,1995.2,1995.0,4.696]
[1742754280524,0.12314218,1995.2,1995.0,0.55]
[1742754281321,6.9202396,1995.2,1995.0,0.55]
[1742754281636,6.9202396,1995.2,1994.9,26.497]
[1742754282520,11.9324896,1995.2,1994.9,26.497]
[1742754282817,1.78506742,1995.0,1994.9,26.497]
[1742754283023,6.79759742,1995.0,1994.9,26.497]
[1742754283220,5.01313,1994.8,1994.3,0.8048]
[1742754283428,1.78506742,1994.6,1994.3,5.8189]
[1742754283610,0.12437136,1994.7,1994.4,5.01402]
[1742754283818,0.12437136,1994.7,1994.5,5.56369]
[1742754283989,7.25824742,1994.9,1994.5,5.56369]
[1742754284191,0.12474741,1994.8,1994.5,0.55]
[1742754284391,6.79819742,1994.8,1994.5,0.55]
[1742754284628,0.12339892,1994.7,1994.5,0.55]
[1742754284811,5.13671892,1994.7,1994.5,0.55]
[1742754285011,0.12339892,1994.7,1994.5,0.55]
[1742754285216,5.01353,1994.6,1994.3,0.8048]
[1742754285428,0.12153858,1994.5,1994.2,26.499]
[1742754285636,8.11385304,1994.5,1994.2,26.499]
[1742754285801,5.01419,1994.4,1994.2,26.499]
[1742754285997,0.11965322,1994.3,1994.2,27.049]
[1742754286211,0.11965322,1994.3,1994.2,26.499]
[1742754286415,0.11965322,1994.3,1994.2,27.049]
[1742754287329,5.01315,1994.8,1994.3,5.56414]
[1742754287545,7.99185446,1994.7,1994.3,1.3548]
[1742754287700,8.11279153,1994.7,1994.3,1.3548]
[1742754288543,5.13435707,1994.7,1994.3,1.3548]
[1742754288847,10.14786707,1994.7,1994.3,1.3548]
[1742754289159,6.48879671,1994.6,1994.3,0.55]
[1742754289544,0.11921156,1994.5,1994.3,0.55]
[1742754290131,0.11921156,1994.5,1994.2,27.3118]
[1742754290436,0.11921156,1994.5,1994.2,32.32632]
[1742754292842,0.11921156,1994.5,1994.4,5.01403]
[1742754293063,0.11921156,1994.5,1994.4,6.328233]
[1742754293236,5.01288,1994.9,1994.5,0.55]
[1742754293724,5.01288,1994.9,1994.5,5.56378]
[1742754294064,5.01278,1994.9,1994.5,5.56368]
[1742754294624,5.01318,1994.8,1994.5,0.55]
[1742754294872,6.31361945,1994.8,1994.5,0.55]
[1742754295240,7.99121446,1994.9,1994.5,0.55]
[1742754295457,5.01278,1994.9,1994.5,5.56374]
[1742754296025,5.01278,1994.9,1994.5,5.56362]
[1742754296330,5.01278,1994.9,1994.6,0.7732]
[1742754297562,5.01306,1994.8,1994.6,0.7732]
[1742754297762,6.015644,1994.8,1994.5,0.5]
[1742754298327,0.11735873,1994.7,1994.5,0.5]
[1742754298558,5.01306,1994.8,1994.5,0.5]
[1742754299553,0.11735873,1994.7,1994.5,0.5]
[1742754302867,0.11735873,1994.7,1994.5,27.011]
[1742754304667,0.11735873,1994.7,1994.6,9.34246446]
[1742754304876,5.01168,1995.4,1994.9,5.01256]
[1742754305033,5.01168,1995.4,1995.1,0.8005]
[1742754305372,0.10853711,1995.3,1995.1,0.8005]
[1742754305559,0.10853711,1995.3,1995.1,5.81275]
[1742754305874,5.01155,1995.4,1995.1,5.81275]
[1742754306044,5.01155,1995.4,1995.1,6.36275]
[1742754306045,0.10816109,1995.2,1995.1,6.36275]
[1742754306245,5.01155,1995.4,1995.1,6.36275]
[1742754306565,0.10816109,1995.2,1995.1,6.36275]
[1742754307056,5.01139,1995.5,1995.1,6.36275]
[1742754307258,0.10816109,1995.2,1995.1,6.36275]
[1742754307445,6.18360924,1995.5,1995.1,6.36275]
[1742754307642,0.10926658,1995.2,1995.1,6.36275]
[1742754307851,6.18360924,1995.5,1995.1,6.41286741]
[1742754308041,0.10926658,1995.2,1995.1,6.41286741]
[1742754308246,11.19512924,1995.5,1995.1,6.41286741]
[1742754308475,0.10926658,1995.2,1995.1,6.41286741]
[1742754308637,10.02286,1995.5,1995.1,6.41286741]
[1742754308841,1.11230449,1995.4,1995.1,6.41286741]
[1742754309149,6.12385449,1995.4,1995.1,1.3505]
[1742754309580,1.11230449,1995.4,1995.1,1.40061764]
[1742754309784,0.11001849,1995.4,1995.2,0.55]
[1742754309951,0.11001849,1995.4,1995.3,5.56177]
[1742754310134,0.11001849,1995.4,1995.3,0.55]
[1742754310689,5.01114,1995.6,1995.3,0.55]
[1742754310836,0.11001849,1995.4,1995.3,0.55]
[1742754311037,5.01114,1995.6,1995.3,1.3505]
[1742754311272,0.11039439,1995.5,1995.3,1.3505]
[1742754313471,0.11039439,1995.5,1995.3,6.41219384]
[1742754313675,0.11039439,1995.5,1995.3,11.10819384]
[1742754313857,5.01077,1995.7,1995.3,16.06975]
[1742754314181,0.11001849,1995.4,1995.3,14.03651446]
[1742754314345,5.01044,1995.9,1995.5,0.55]
[1742754314546,5.01061,1995.8,1995.5,0.55]
[1742754316383,5.01044,1995.9,1995.5,0.55]
[1742754316384,5.01039,1995.9,1995.6,0.8143]
[1742754316544,0.4604,1996.0,1995.7,0.55]
[1742754316749,5.00987,1996.1,1995.7,5.5606]
[1742754316949,2.97843446,1995.8,1995.4,5.5103]
[1742754317150,5.01147,1995.5,1995.3,26.506]
[1742754319477,10.02232,1995.6,1995.3,26.506]
[1742754319665,5.01106,1995.6,1995.3,26.506]
[1742754320162,10.0222,1995.6,1995.3,26.506]
[1742754320348,11.07046,1995.6,1995.3,26.506]
[1742754321178,5.01128,1995.5,1995.3,26.506]
[1742754322287,10.02278,1995.5,1995.3,26.506]
[1742754322488,5.01128,1995.5,1995.3,26.506]
[1742754322992,10.02277,1995.5,1995.3,26.506]
[1742754323194,11.129873,1995.5,1995.3,26.506]
[1742754324092,5.01152,1995.4,1995.3,26.506]
[1742754324500,11.129783,1995.5,1995.3,26.506]
[1742754324697,6.118383,1995.5,1995.3,26.506]
[1742754325199,6.118383,1995.5,1995.2,0.55]
[1742754326198,0.6118383,1995.4,1995.2,0.55]
[1742754326396,6.0839083,1995.4,1995.1,31.198]
[1742754327508,11.0956383,1995.4,1995.1,31.198]
[1742754327666,5.01191,1995.3,1995.1,31.198]
[1742754327872,5.01191,1995.3,1995.1,26.502]
[1742754328164,0.10256609,1995.2,1995.1,26.502]
[1742754329004,0.10256609,1995.2,1995.1,32.88208]
[1742754329379,5.01127,1995.5,1995.1,32.88208]
[1742754329770,0.10349481,1995.4,1995.1,32.88208]
[1742754331214,0.10349481,1995.4,1995.1,37.89423]
[1742754332181,0.10349481,1995.4,1995.3,5.01177]
[1742754332513,5.01084,1995.7,1995.3,5.56177]
[1742754332805,0.10323922,1995.4,1995.3,0.55]
[1742754332998,5.512104,1995.6,1995.3,0.55]
[1742754333604,5.11467987,1995.5,1995.3,0.55]
[1742754333907,0.10334987,1995.5,1995.3,0.55]
[1742754334111,0.10334987,1995.5,1995.3,5.56167]
[1742754334277,0.10334987,1995.5,1995.4,0.7739]
[1742754334481,8.44956446,1995.8,1995.5,0.55]
[1742754334676,0.34388345,1995.7,1995.5,0.55]
[1742754334895,5.35467345,1995.7,1995.5,0.55]
[1742754335476,5.85379421,1996.0,1995.6,5.01091]
[1742754335681,5.85379421,1996.0,1995.7,5.01069]
[1742754336028,5.47053,1996.0,1995.6,5.78481]
[1742754336317,10.02035,1996.0,1995.6,5.78481]
[1742754336683,10.01969,1996.1,1995.7,5.56075]
[1742754337098,5.01002,1996.0,1995.7,5.56075]
[1742754337799,5.01002,1996.0,1995.7,0.55]
[1742754342392,5.01029,1995.9,1995.7,0.55]
[1742754342593,10.02023,1996.0,1995.7,0.55]
[1742754342823,5.01002,1996.0,1995.7,0.55]
[1742754343194,0.09570087,1995.9,1995.7,0.55]
[1742754343691,5.10599087,1995.9,1995.7,0.55]
[1742754345484,5.10599087,1995.9,1995.6,32.28477]
[1742754345690,5.10599087,1995.9,1995.6,27.2739]
[1742754345902,5.01055,1995.8,1995.6,27.2739]
[1742754346427,0.09450746,1995.7,1995.6,27.05]
[1742754347227,5.10527746,1995.7,1995.6,26.5]
[1742754347430,0.09450746,1995.7,1995.6,26.5]
[1742754349792,1.06541521,1995.7,1995.2,0.98630988]
[1742754349990,5.01117,1995.6,1995.2,5.01191]
[1742754350190,5.10562322,1995.5,1995.2,5.01191]
[1742754350429,5.10562322,1995.5,1995.3,0.55]
[1742754350611,5.0113,1995.5,1995.3,0.55]
[1742754350811,0.09382714,1995.5,1995.3,0.55]
[1742754351003,0.09382714,1995.5,1995.3,0.60011259]
[1742754351201,10.48217,1995.7,1995.3,6.5516983]
[1742754351409,0.09446819,1995.6,1995.3,6.5516983]
[1742754351620,5.0108,1995.7,1995.3,6.5516983]
[1742754351926,0.09420298,1995.6,1995.3,6.5516983]
[1742754352425,0.09409235,1995.5,1995.3,6.5516983]
[1742754352816,0.09391554,1995.5,1995.3,6.5516983]
[1742754352995,5.0111,1995.6,1995.3,1.48992571]
[1742754353205,0.09400395,1995.5,1995.3,0.55]
[1742754353411,5.0111,1995.6,1995.3,5.56175]
[1742754353599,0.09382714,1995.5,1995.3,5.56175]
[1742754354432,5.0111,1995.6,1995.3,0.55]
[1742754357242,0.4604,1995.5,1995.2,0.55]
[1742754358437,5.01161,1995.4,1995.2,0.55]
[1742754359435,5.01105,1995.6,1995.2,9.576647]
[1742754359737,10.11636328,1995.6,1995.2,9.576647]
[1742754359954,5.01133,1995.5,1995.2,1.3588]
[1742754362661,5.01133,1995.5,1995.2,6.3708]
[1742754362950,5.01133,1995.5,1995.2,1.3588]
[1742754363310,5.01133,1995.5,1995.2,6.37082]
[1742754364535,5.01105,1995.6,1995.2,6.3707]
[1742754364845,5.01106,1995.6,1995.3,5.01157]
[1742754366348,5.01073,1995.8,1995.4,0.55]
[1742754366538,5.0108,1995.7,1995.4,1.3322]
[1742754366739,5.10468597,1995.7,1995.4,1.3322]
[1742754367418,0.09388597,1995.7,1995.5,5.01127]
[1742754367610,5.01009,1996.0,1995.7,5.01076]
[1742754367857,0.09414988,1995.9,1995.7,5.01076]
[1742754369772,5.00992,1996.1,1995.7,5.01076]
[1742754369929,0.09456965,1995.8,1995.7,5.56076]
[1742754370127,5.00992,1996.1,1995.7,7.04900145]
[1742754370357,0.09377414,1995.8,1995.7,5.56076]
[1742754370624,0.09403933,1995.8,1995.7,5.56076]
[1742754370824,5.01003,1996.0,1995.7,5.56076]
[1742754371054,0.09527603,1995.9,1995.7,0.55]
[1742754371236,5.10554603,1995.9,1995.7,0.55]
[1742754371439,0.09527603,1995.9,1995.7,0.55]
[1742754371638,5.10556603,1995.9,1995.7,0.55]
[1742754371862,5.91396608,1995.9,1995.7,0.55]
[1742754372835,5.10556603,1995.9,1995.7,0.55]
[1742754373045,0.09527603,1995.9,1995.7,1.3322]
[1742754375069,5.10558603,1995.9,1995.7,1.3322]
[1742754375262,5.10558603,1995.9,1995.7,0.55]
[1742754377051,0.09527603,1995.9,1995.7,0.55]
[1742754381478,0.09527603,1995.9,1995.8,0.8271]
[1742754382849,5.00984,1996.1,1995.8,0.8271]
[1742754383059,0.09569168,1996.0,1995.8,0.8271]
[1742754385380,5.10585168,1996.0,1995.7,0.55]
[1742754385586,8.59483931,1996.0,1995.7,0.55]
[1742754386382,5.01044,1995.9,1995.7,0.55]
[1742754386584,5.01062,1995.8,1995.6,0.55]
[1742754386950,0.09494362,1995.7,1995.6,0.55]
[1742754387562,5.47069,1995.9,1995.6,0.55]
[1742754387762,0.09485522,1995.7,1995.6,0.55]
[1742754387994,5.47069,1995.9,1995.6,0.55]
[1742754388189,0.09503202,1995.7,1995.6,0.55]
[1742754388364,5.47069,1995.9,1995.6,0.55]
[1742754388565,0.09476682,1995.7,1995.6,0.55]
[1742754388798,5.47069,1995.9,1995.6,0.55]
[1742754388965,0.09494362,1995.7,1995.6,0.55]
[1742754389164,5.47069,1995.9,1995.6,0.55]
[1742754389687,0.09531939,1995.8,1995.6,0.55]
[1742754389888,5.01072,1995.8,1995.6,0.55]
[1742754390101,0.09494362,1995.7,1995.5,31.192]
[1742754390599,5.10580362,1995.7,1995.5,26.498]
[1742754390791,5.01102,1995.6,1995.5,26.498]
[1742754391301,5.105411,1995.6,1995.5,26.498]
[1742754391598,0.094391,1995.6,1995.5,26.498]
[1742754391971,10.4822,1995.7,1995.5,26.498]
[1742754392175,0.09420292,1995.6,1995.5,26.498]
[1742754392589,10.4822,1995.7,1995.5,26.498]
[1742754392791,0.09402611,1995.6,1995.5,26.498]
[1742754393217,10.4822,1995.7,1995.5,26.498]
[1742754393521,0.09411452,1995.6,1995.5,26.498]
[1742754393914,10.4822,1995.7,1995.5,26.498]
[1742754394111,0.09411452,1995.6,1995.5,26.498]
[1742754394523,10.4822,1995.7,1995.5,26.498]
[1742754394677,0.09402611,1995.6,1995.5,26.498]
[1742754394990,10.4822,1995.7,1995.5,26.498]
[1742754395188,0.09402611,1995.6,1995.5,26.498]
[1742754395620,10.4822,1995.7,1995.5,26.498]
[1742754395820,0.09402611,1995.6,1995.5,26.498]
[1742754396123,10.4822,1995.7,1995.5,26.498]
[1742754396319,0.09402611,1995.6,1995.5,26.498]
[1742754396719,10.4822,1995.7,1995.5,26.498]
[1742754396931,0.09402611,1995.6,1995.5,26.498]
[1742754397423,10.4822,1995.7,1995.5,26.498]
[1742754397583,0.0939377,1995.6,1995.5,26.498]
[1742754397785,0.0939377,1995.6,1995.4,0.55]
[1742754398014,10.4822,1995.7,1995.4,0.55]
[1742754398221,0.09402611,1995.6,1995.4,0.55]
[1742754398530,10.4822,1995.7,1995.4,0.55]
[1742754398735,0.09402611,1995.6,1995.4,0.55]
[1742754399136,10.4822,1995.7,1995.4,0.55]
[1742754399447,0.09402611,1995.6,1995.4,0.55]
[1742754400129,10.4822,1995.7,1995.4,0.55]
[1742754400331,0.09402611,1995.6,1995.4,0.55]
[1742754400731,10.4822,1995.7,1995.4,0.55]
[1742754401092,10.576143,1995.7,1995.4,0.55]
[1742754403934,5.565183,1995.7,1995.4,0.55]
[1742754404233,5.104783,1995.7,1995.4,0.55]
[1742754405297,10.115733,1995.7,1995.4,0.55]
[1742754405910,5.104783,1995.7,1995.4,0.55]
[1742754409553,0.093943,1995.7,1995.4,5.56132]
[1742754409757,0.093943,1995.7,1995.6,0.7634]
[1742754409911,0.093943,1995.7,1995.6,6.32442]
[1742754410111,5.00982,1996.1,1995.7,5.56072]
[1742754410323,6.79517153,1996.1,1995.7,5.56072]
[1742754410610,11.80515153,1996.1,1995.7,5.56072]
[1742754410807,6.79517153,1996.1,1995.7,5.56072]
[1742754411050,11.80514153,1996.1,1995.7,5.56072]
[1742754411912,5.01004,1996.0,1995.7,5.56072]
[1742754415572,5.00985,1996.1,1995.7,5.56072]
[1742754418366,0.09599669,1996.0,1995.7,5.56072]
[1742754418541,0.09599669,1996.0,1995.7,8.34635503]
[1742754422070,0.09599669,1996.0,1995.8,0.8265]
[1742754423281,5.10601669,1996.0,1995.8,0.8265]
[1742754423776,0.09599669,1996.0,1995.8,0.8265]
[1742754435588,0.09599669,1996.0,1995.9,0.55]
[1742754436002,0.09599669,1996.0,1995.9,5.56027]
[1742754436297,0.09723953,1996.0,1995.9,5.56027]
[1742754436510,5.00953,1996.2,1995.9,5.56027]
[1742754436805,0.09761516,1996.1,1995.9,5.56027]
[1742754437286,0.09761516,1996.1,1995.9,6.699974]
[1742754438575,0.09761516,1996.1,1995.9,1.689704]
[1742754440984,0.09761516,1996.1,1996.0,0.8119]
[1742754441184,0.09761516,1996.1,1996.0,8.1566408]
[1742754441383,7.2534008,1996.7,1996.2,0.8119]
[1742754441595,7.2534008,1996.7,1996.4,0.55]
[1742754441801,0.10192352,1996.6,1996.4,0.55]
[1742754441973,1.7847208,1996.7,1996.4,5.5588]
[1742754442177,0.10287275,1996.5,1996.4,5.5588]
[1742754442365,12.2613908,1996.8,1996.4,6.92658]
[1742754442566,0.10287275,1996.5,1996.4,6.3707]
[1742754442784,1.7847208,1996.7,1996.4,6.3707]
[1742754442964,0.10287275,1996.5,1996.4,6.3707]
[1742754443168,1.7847208,1996.7,1996.4,6.3707]
[1742754443371,0.10351097,1996.5,1996.4,6.3707]
[1742754443568,6.7929908,1996.7,1996.4,6.3707]
[1742754443816,0.10333439,1996.5,1996.4,6.3707]
[1742754443975,6.7929908,1996.7,1996.4,6.3707]
[1742754444176,0.10351097,1996.5,1996.4,1.3619]
[1742754444431,6.7929908,1996.7,1996.4,1.3619]
[1742754444586,0.10359926,1996.5,1996.4,1.3619]
[1742754444910,0.10419173,1996.5,1996.4,1.3619]
[1742754445105,5.00827,1996.7,1996.4,1.3619]
[1742754445308,6.7929908,1996.7,1996.4,1.3619]
[1742754445487,0.10456702,1996.6,1996.4,1.3619]
[1742754445686,6.7929908,1996.7,1996.4,1.3619]
[1742754445888,0.10456702,1996.6,1996.4,1.3619]
[1742754446101,6.7929908,1996.7,1996.4,1.999013]
[1742754446303,0.10456702,1996.6,1996.4,1.999013]
[1742754446490,6.7929908,1996.7,1996.4,1.999013]
[1742754446491,5.00827,1996.7,1996.4,3.01276206]
[1742754446691,0.10474364,1996.6,1996.4,3.01276206]
[1742754446898,5.00827,1996.7,1996.4,3.01276206]
[1742754447090,0.10472085,1996.6,1996.4,3.01276206]
[1742754447290,5.00827,1996.7,1996.4,3.01276206]
[1742754447502,0.10542723,1996.6,1996.4,3.01276206]
[1742754447707,5.00827,1996.7,1996.4,3.01276206]
[1742754447886,5.11393723,1996.6,1996.4,1.3619]
[1742754450100,0.10542723,1996.6,1996.4,1.3619]
[1742754450416,11.8014608,1996.7,1996.4,1.3619]
[1742754450583,0.10529402,1996.5,1996.4,1.3619]
[1742754450789,11.8014608,1996.7,1996.4,1.3619]
[1742754451021,0.10538229,1996.5,1996.4,1.3619]
[1742754451228,11.8014608,1996.7,1996.4,4.648116]
[1742754451424,0.10547056,1996.5,1996.4,4.648116]
[1742754451594,11.8014608,1996.7,1996.4,4.648116]
[1742754452120,0.10593405,1996.6,1996.4,4.648116]
[1742754452423,11.8014608,1996.7,1996.4,4.648116]
[1742754452623,0.10529402,1996.5,1996.4,4.648116]
[1742754453120,11.8014608,1996.7,1996.4,4.648116]
[1742754453422,5.11548269,1996.6,1996.4,1.3619]
[1742754453582,10.12419269,1996.6,1996.4,1.3619]
[1742754453783,5.00876,1996.5,1996.4,0.55]
[1742754454018,6.89960689,1996.5,1996.3,31.182]
[1742754454217,5.00901,1996.4,1996.3,31.732]
[1742754454439,0.10583908,1996.4,1996.3,31.732]
[1742754456418,6.7930308,1996.7,1996.4,0.55]
[1742754456629,6.7930308,1996.7,1996.4,6.3852]
[1742754456630,5.00827,1996.7,1996.4,6.3852]
[1742754457127,7.2531608,1996.8,1996.4,6.3852]
[1742754457288,12.2613508,1996.8,1996.4,6.3852]
[1742754457490,7.2531608,1996.8,1996.4,6.3852]
[1742754457698,6.7927608,1996.8,1996.5,0.63852]
[1742754458710,1.7847208,1996.9,1996.7,5.00823]
[1742754458912,6.7924808,1996.9,1996.6,6.38459]
[1742754459604,6.7924808,1996.9,1996.6,1.3763]
[1742754460534,1.7847208,1996.9,1996.6,6.38469]
[1742754460699,1.7847208,1996.9,1996.7,0.638469]
[1742754462340,1.7847208,1996.8,1996.7,0.55]
[1742754462648,6.7927308,1996.8,1996.7,0.55]
[1742754463304,6.90052358,1996.8,1996.7,0.55]
[1742754463535,6.90052358,1996.8,1996.5,0.63852]
[1742754463740,6.90052358,1996.8,1996.6,0.55]
[1742754464139,11.90873358,1996.8,1996.6,0.55]
[1742754464442,1.7847208,1996.7,1996.6,0.55]
[1742754464638,1.89213841,1996.7,1996.6,0.55]
[1742754465643,0.10741761,1996.7,1996.6,0.55]
[1742754467246,6.90039841,1996.7,1996.6,0.55]
[1742754467941,5.11567761,1996.7,1996.6,0.55]
[1742754468146,0.10741761,1996.7,1996.6,0.55]
[1742754469145,1.89213841,1996.7,1996.6,0.55]
[1742754476050,5.00852,1996.6,1996.4,31.176]
[1742754476233,7.36079841,1996.7,1996.4,31.176]
[1742754476234,1.7847208,1996.5,1996.4,31.726]
[1742754476439,1.89157311,1996.5,1996.4,35.23436939]
[1742754477151,1.89157311,1996.5,1996.4,40.24337939]
[1742754479152,0.10685231,1996.5,1996.4,40.24337939]
[1742754480166,6.90033311,1996.5,1996.4,27.036]
[1742754480481,6.90033311,1996.5,1996.4,26.486]
[1742754480770,7.36073311,1996.5,1996.4,26.486]
[1742754481378,7.36073311,1996.5,1995.9,9.7002]
[1742754481379,5.46982,1996.3,1995.9,9.7002]
[1742754481570,1.7847208,1996.0,1995.9,10.2502]
[1742754481775,1.7847208,1996.0,1995.9,13.454]
[1742754481987,1.88910677,1996.0,1995.9,14.004]
[1742754482330,1.88910677,1996.0,1995.9,13.454]
[1742754482531,1.7847208,1996.0,1995.9,13.454]
[1742754482746,1.7847208,1996.1,1996.0,0.55]
[1742754483255,1.8894822,1996.1,1996.0,0.55]
[1742754485070,1.7847208,1996.1,1996.0,0.55]
[1742754485260,6.8992822,1996.1,1995.9,0.55]
[1742754485443,1.7847208,1996.0,1995.8,26.485]
[1742754485653,1.7847208,1995.9,1995.8,27.035]
[1742754485971,1.88873129,1995.9,1995.8,27.035]
[1742754487773,1.88873129,1995.9,1995.8,32.04552]
[1742754487774,0.10401049,1995.9,1995.8,32.04552]
[1742754487948,0.10401049,1995.9,1995.8,27.035]
[1742754490587,1.88873129,1995.9,1995.8,27.035]
[1742754493295,0.10401049,1995.9,1995.8,27.035]
[1742754493697,1.88873129,1995.9,1995.8,27.035]
[1742754495897,1.7847208,1995.9,1995.8,27.035]
[1742754496055,1.7847208,1996.0,1995.8,27.035]
[1742754496259,1.7847208,1995.9,1995.8,27.035]
[1742754499104,6.7949908,1995.9,1995.8,27.035]
[1742754499454,6.7949908,1995.9,1995.8,0.55]
[1742754499866,6.7949908,1995.9,1995.7,0.55]
[1742754500191,6.7949908,1995.9,1995.6,36.19196]
[1742754500192,6.7953008,1995.8,1995.6,31.181]
[1742754500395,1.7847208,1995.7,1995.6,31.731]
[1742754501263,6.7955108,1995.7,1995.5,1.00494093]
[1742754501466,1.7847208,1995.6,1995.5,32.18594093]
[1742754501683,1.7847208,1995.6,1995.5,32.73594093]
[1742754501913,1.7847208,1995.8,1995.6,0.55]
[1742754502377,1.7847208,1995.7,1995.6,0.55]
[1742754504395,7.2558908,1995.7,1995.6,0.55]
[1742754504803,5.01102,1995.6,1995.5,26.491]
[1742754504974,6.7957408,1995.6,1995.5,26.491]
[1742754505680,10.26755268,1995.6,1995.5,26.491]
[1742754505996,5.01177,1995.3,1995.0,4.691]
[1742754506167,1.7847208,1995.2,1995.1,1.57552523]
[1742754506369,1.7847208,1995.2,1995.1,1.02552523]
[1742754506596,1.7847208,1995.2,1995.1,1.57552523]
[1742754507020,1.7847208,1995.3,1995.1,6.58769523]
[1742754507171,5.01088,1995.7,1995.2,0.55]
[1742754507374,5.47128,1995.7,1995.4,0.55]
[1742754507597,1.7847208,1995.5,1995.4,0.55]
[1742754508714,1.7847208,1995.5,1995.2,0.55]
[1742754508715,6.7959908,1995.5,1995.2,0.55]
[1742754508917,1.7847208,1995.3,1995.2,0.55]
[1742754509209,1.7847208,1995.4,1995.2,0.55]
[1742754509417,1.7847208,1995.3,1995.2,0.55]
[1742754510313,1.7847208,1995.4,1995.2,0.55]
[1742754512785,1.7847208,1995.5,1995.2,5.56187]
[1742754512989,1.7847208,1995.5,1995.2,6.80140452]
[1742754516488,6.7960708,1995.5,1995.2,1.78953452]
[1742754517522,6.7960708,1995.5,1995.2,0.55]
[1742754517688,1.7847208,1995.4,1995.2,0.55]
[1742754517887,1.7847208,1995.4,1995.2,5.562]
[1742754520434,6.7960708,1995.5,1995.2,5.562]
[1742754521036,1.7847208,1995.4,1995.2,5.562]
[1742754521343,6.7960708,1995.5,1995.2,5.562]
[1742754521547,1.7847208,1995.5,1995.2,10.5739]
[1742754521729,1.7847208,1995.5,1995.2,14.46332252]
[1742754522229,1.7847208,1995.5,1995.3,5.01177]
[1742754522849,1.7847208,1995.5,1995.2,9.45132252]
[1742754523919,1.7847208,1995.5,1995.2,14.46317252]
[1742754525543,1.7847208,1995.5,1995.3,5.01176]
[1742754526221,1.7847208,1995.5,1995.4,1.01684366]
[1742754530438,1.7847208,1995.5,1995.3,5.01176]
[1742754532679,1.7847208,1995.6,1995.4,0.7916]
[1742754532882,5.47091,1995.9,1995.5,10.57236]
[1742754533078,1.7847208,1995.8,1995.5,10.57236]
[1742754533689,1.7847208,1995.7,1995.5,5.56109]
[1742754535560,1.7847208,1995.8,1995.5,10.5722]
[1742754535759,1.7847208,1995.8,1995.5,14.82778]
[1742754538119,1.7847208,1996.0,1995.8,5.01051]
[1742754538420,1.7847208,1995.9,1995.7,5.0107]
[1742754538912,1.7847208,1995.8,1995.7,5.5607]
[1742754539122,1.7847208,1995.8,1995.7,0.55]
[1742754540416,1.7847208,1995.8,1995.5,10.05837]
[1742754540617,1.7847208,1995.7,1995.5,4.25558]
[1742754540815,1.7847208,1995.7,1995.5,10.25114]
[1742754541431,1.7847208,1995.8,1995.5,10.25114]
[1742754541585,1.7847208,1995.8,1995.5,15.26222]
[1742754541786,1.7847208,1995.8,1995.6,5.01099]
[1742754543110,1.7847208,1995.8,1995.6,6.00632249]
[1742754543310,1.7847208,1995.9,1995.6,7.71122274]
[1742754544123,1.7847208,1995.8,1995.6,7.71122274]
[1742754544505,5.47018,1996.1,1995.7,0.55]
[1742754544717,1.7847208,1995.9,1995.7,5.56067]
[1742754544925,1.7847208,1995.9,1995.7,6.88785127]
[1742754545106,1.7847208,1995.9,1995.7,1.87718127]